bitfinex/quotes_ETHUSD_20251224
["timestamp","ask_amount","ask_price","bid_price","bid_amount"]
[1766585203464,21.524312,2935.9,2935.3,0.9365]
[1766585205991,0.04257783,2935.8,2935.3,0.001]
[1766585206200,0.04257783,2935.8,2935.3,0.0264949]
[1766585206490,12.121737,2935.9,2935.3,0.0264949]
[1766585206793,1.2123737,2935.9,2935.3,0.0264949]
[1766585206994,7.641781,2935.9,2935.3,0.0264949]
[1766585207184,6.72337,2935.9,2935.3,0.9383949]
[1766585208705,0.002,2936.0,2935.3,0.9383949]
[1766585208895,0.002,2936.0,2935.4,0.9119]
[1766585209194,0.002,2936.5,2935.8,0.9119]
[1766585209503,3.273404,2936.4,2935.9,0.02547749]
[1766585209800,2.441407,2936.4,2935.9,0.02547749]
[1766585210015,0.24879747,2936.4,2935.9,0.02547749]
[1766585210216,0.04456768,2936.5,2935.9,0.93737749]
[1766585210217,0.002,2936.5,2935.9,0.93737749]
[1766585211016,0.002,2936.5,2935.9,0.9119]
[1766585212576,0.002,2936.5,2936.0,0.93737561]
[1766585212805,0.002,2936.4,2936.0,0.93737561]
[1766585213705,0.002,2936.6,2936.2,0.9119]
[1766585213909,0.002,2936.6,2936.4,0.9119]
[1766585214108,0.002,2936.6,2936.5,0.02546518]
[1766585214989,0.04455753,2937.2,2936.5,0.93736518]
[1766585215390,0.002,2937.2,2936.5,0.93736518]
[1766585215594,0.04455753,2937.2,2936.5,0.93736518]
[1766585216146,0.04455753,2937.2,2936.7,4.84471302]
[1766585216286,0.002,2937.2,2936.8,0.93735343]
[1766585218323,0.002,2937.6,2936.9,0.9119]
[1766585218324,5.035834,2937.5,2936.9,0.9119]
[1766585218526,5.035834,2937.5,2937.1,0.9119]
[1766585219231,3.707687,2937.5,2936.8,0.9119]
[1766585220222,0.04455174,2937.6,2936.8,0.9119]
[1766585220389,13.942498,2937.4,2936.8,0.9119]
[1766585220592,20.777453,2937.5,2936.8,0.9119]
[1766585220917,0.002,2937.6,2937.1,0.9119]
[1766585221440,0.002,2937.6,2937.2,0.03404603]
[1766585221606,0.002,2937.7,2937.1,0.962]
[1766585221920,0.2,2938.3,2937.0,4.84471302]
[1766585221921,8.831195,2938.1,2937.3,0.962]
[1766585222122,0.04254594,2938.0,2937.0,4.84471302]
[1766585222293,5.725632,2937.9,2937.2,0.962]
[1766585222491,0.04254884,2937.8,2937.2,0.962]
[1766585222691,3.40347265,2938.2,2937.2,0.962]
[1766585222692,22.287333,2938.0,2937.2,0.962]
[1766585222923,11.873882,2937.8,2937.2,0.962]
[1766585223127,0.04255029,2937.7,2936.6,0.962]
[1766585223338,0.867,2937.9,2936.1,0.962]
[1766585223339,28.524263,2937.3,2936.1,0.962]
[1766585223627,23.139436,2937.1,2936.2,0.962]
[1766585223831,0.867,2937.1,2936.2,0.962]
[1766585223994,12.61601,2937.0,2936.2,0.962]
[1766585224196,4.481598,2937.0,2936.3,0.962]
[1766585224593,0.867,2937.3,2936.3,0.962]
[1766585224934,17.31909,2937.1,2936.4,0.962]
[1766585225101,25.287489,2937.2,2936.4,0.962]
[1766585225621,25.287489,2937.2,2936.2,4.84471302]
[1766585226301,14.155493,2937.0,2936.2,4.84471302]
[1766585226634,30.0,2937.2,2936.2,4.84471302]
[1766585226793,14.155493,2937.0,2936.2,5.48345145]
[1766585226993,21.889036,2937.1,2936.3,0.962]
[1766585227532,20.889036,2937.1,2936.3,0.962]
[1766585228237,11.670493,2937.0,2936.3,0.962]
[1766585232833,11.670493,2937.0,2936.1,0.5806713]
[1766585233037,11.670493,2937.0,2936.0,0.962]
[1766585233238,0.002,2937.1,2936.0,0.962]
[1766585233535,0.04455898,2937.1,2936.0,0.962]
[1766585233741,30.0,2937.0,2936.0,0.962]
[1766585234715,0.04256188,2936.9,2936.0,0.962]
[1766585234910,30.0,2936.9,2936.0,0.962]
[1766585235229,0.90956333,2936.8,2936.0,0.962]
[1766585235429,25.223819,2936.7,2936.0,0.962]
[1766585235630,25.223819,2936.7,2936.1,0.99598335]
[1766585235852,19.575139,2936.6,2936.1,0.99598335]
[1766585236717,19.575139,2936.6,2935.9,0.001]
[1766585236937,3.17248,2936.4,2935.9,0.001]
[1766585237139,30.0,2936.5,2935.6,0.962]
[1766585237315,0.04256913,2936.4,2935.6,0.962]
[1766585237510,30.0,2936.4,2935.6,0.962]
[1766585237714,0.04257058,2936.3,2935.6,0.962]
[1766585237926,30.0,2936.4,2935.6,0.962]
[1766585238136,0.04257058,2936.3,2935.6,0.962]
[1766585238327,30.0,2936.5,2935.6,0.962]
[1766585238552,0.04256913,2936.4,2935.6,0.962]
[1766585239048,30.0,2936.5,2935.6,0.962]
[1766585239250,0.04256913,2936.4,2935.6,0.962]
[1766585239453,0.867,2936.7,2935.6,0.962]
[1766585239454,30.0,2936.5,2935.6,0.962]
[1766585239624,0.04256913,2936.4,2935.6,0.962]
[1766585239821,30.0,2936.5,2935.6,0.962]
[1766585240022,2.07970529,2936.4,2935.6,0.962]
[1766585240335,0.04256913,2936.4,2935.6,0.962]
[1766585240532,30.0,2936.5,2935.6,0.962]
[1766585240843,0.04256913,2936.4,2935.6,0.962]
[1766585241153,30.0,2936.5,2935.6,0.962]
[1766585241352,0.04256913,2936.4,2935.6,0.962]
[1766585241765,22.220563,2936.5,2935.6,0.962]
[1766585241921,18.226172,2936.6,2935.6,0.962]
[1766585242123,9.794192,2936.4,2935.6,0.962]
[1766585242342,0.867,2936.6,2935.7,0.962]
[1766585242547,0.04256768,2936.5,2935.9,0.962]
[1766585243455,2.051956,2936.4,2935.9,0.962]
[1766585243964,0.04256768,2936.5,2935.9,0.962]
[1766585244269,6.44789,2936.4,2935.9,0.962]
[1766585245147,6.44789,2936.4,2935.5,4.84471302]
[1766585245353,6.44789,2936.4,2935.6,1.4465713]
[1766585245653,0.04256768,2936.5,2935.6,1.4465713]
[1766585245856,0.002,2936.4,2935.6,1.4465713]
[1766585246757,0.002,2936.4,2935.7,0.962]
[1766585248903,0.002,2936.4,2935.6,0.4845713]
[1766585248904,0.002,2936.4,2935.6,0.962]
[1766585249109,0.002,2936.4,2935.5,0.001]
[1766585249110,0.48892807,2936.3,2935.5,0.001]
[1766585249312,0.04257203,2936.2,2935.6,0.962]
[1766585249756,0.04257203,2936.2,2935.5,0.001]
[1766585249958,0.04257203,2936.2,2935.6,0.962]
[1766585250405,0.04456913,2936.4,2935.6,0.962]
[1766585250701,0.54915826,2936.4,2935.6,0.962]
[1766585251056,0.54915826,2936.4,2935.5,0.001]
[1766585251057,4.84471302,2936.2,2935.5,0.001]
[1766585251256,30.0,2936.0,2935.4,0.001]
[1766585251492,0.04257638,2935.9,2935.4,0.001]
[1766585251691,0.04257493,2936.0,2935.5,0.9922]
[1766585251989,0.61810373,2936.0,2935.5,0.9922]
[1766585252165,0.04257493,2936.0,2935.5,0.9922]
[1766585252364,0.868,2936.3,2935.5,0.9922]
[1766585252561,0.04257203,2936.2,2935.5,0.9922]
[1766585253653,0.87,2936.4,2935.5,0.9922]
[1766585253894,2.0279,2936.2,2935.5,0.9922]
[1766585257262,0.04257348,2936.1,2935.5,0.9922]
[1766585257772,12.651856,2936.2,2935.5,0.9922]
[1766585257970,0.04257348,2936.1,2935.5,0.9922]
[1766585258161,12.651856,2936.2,2935.5,0.9922]
[1766585258363,0.04257348,2936.1,2935.5,0.9922]
[1766585258559,11.166856,2936.2,2935.5,0.9922]
[1766585258756,0.04257348,2936.1,2935.5,0.9922]
[1766585259092,0.04257203,2936.2,2935.5,0.9922]
[1766585259263,12.651856,2936.2,2935.5,0.9922]
[1766585259463,0.04257348,2936.1,2935.5,0.9922]
[1766585259688,12.651856,2936.2,2935.5,0.9922]
[1766585259890,0.04257348,2936.1,2935.5,0.9922]
[1766585260196,8.224493,2936.2,2935.5,0.9922]
[1766585260379,2.871587,2936.3,2935.6,0.9197]
[1766585260564,0.04257058,2936.3,2935.6,0.9197]
[1766585262396,8.267256,2936.2,2935.6,0.9197]
[1766585262585,0.04257348,2936.1,2935.6,0.9197]
[1766585262894,8.267256,2936.2,2935.6,0.9197]
[1766585263064,0.04257348,2936.1,2935.6,0.9197]
[1766585263269,0.002,2936.2,2935.6,0.9197]
[1766585264273,0.002,2936.2,2935.5,0.001]
[1766585265590,0.002,2936.2,2935.5,0.9207]
[1766585265791,0.002,2936.2,2935.5,1.10227]
[1766585268175,0.002,2936.2,2935.6,0.9197]
[1766585268690,0.002,2936.4,2935.6,0.9197]
[1766585272524,3.097014,2936.3,2935.6,0.9197]
[1766585272825,3.097014,2936.3,2935.5,0.18257]
[1766585273043,0.04257203,2936.2,2935.5,0.001]
[1766585273526,30.0,2936.3,2935.5,0.001]
[1766585273724,0.04456913,2936.4,2935.5,0.001]
[1766585273725,0.04257203,2936.2,2935.5,0.001]
[1766585273919,30.0,2936.3,2935.5,0.001]
[1766585274117,0.04257203,2936.2,2935.5,0.001]
[1766585274315,26.220845,2936.3,2935.5,0.9207]
[1766585274539,2.61473253,2936.2,2935.5,0.9207]
[1766585274713,0.04257203,2936.2,2935.5,0.9207]
[1766585274915,15.823215,2936.2,2935.5,0.9207]
[1766585275103,23.273908,2936.3,2935.5,0.9207]
[1766585275300,0.04257203,2936.2,2935.5,0.9207]
[1766585275501,17.387977,2936.2,2935.5,0.9207]
[1766585275701,0.04257348,2936.1,2935.5,0.9207]
[1766585276117,16.823215,2936.2,2935.5,0.9207]
[1766585276327,0.04257348,2936.1,2935.5,0.9207]
[1766585276533,16.527736,2936.2,2935.5,0.9207]
[1766585276701,0.04257348,2936.1,2935.5,0.9207]
[1766585276900,16.818691,2936.2,2935.5,0.9207]
[1766585277209,0.87,2936.4,2935.5,0.9207]
[1766585277210,0.04257348,2936.1,2935.5,0.9207]
[1766585277409,11.729431,2936.2,2935.5,1.44294436]
[1766585277611,17.858929,2936.3,2935.5,1.44294436]
[1766585277938,0.04257203,2936.2,2935.5,1.44294436]
[1766585278230,12.715774,2936.2,2935.5,0.9207]
[1766585278442,0.04257348,2936.1,2935.5,0.9207]
[1766585278736,12.715774,2936.2,2935.5,0.9207]
[1766585278902,0.04257348,2936.1,2935.5,0.9207]
[1766585279102,14.200774,2936.2,2935.5,0.9207]
[1766585279303,0.04257348,2936.1,2935.5,0.9207]
[1766585279839,13.696048,2936.2,2935.5,0.9207]
[1766585280013,0.04257348,2936.1,2935.5,0.9207]
[1766585280214,13.696048,2936.2,2935.5,0.9207]
[1766585280409,0.04257348,2936.1,2935.5,0.9207]
[1766585280626,13.696048,2936.2,2935.5,1.44295002]
[1766585280932,0.04257348,2936.1,2935.5,0.9207]
[1766585281134,12.696048,2936.2,2935.5,0.9207]
[1766585281331,0.04257348,2936.1,2935.5,0.9207]
[1766585281532,11.420092,2936.2,2935.5,0.9207]
[1766585281738,0.04257348,2936.1,2935.5,0.9207]
[1766585281941,10.439818,2936.2,2935.5,1.44294794]
[1766585282144,0.04257348,2936.1,2935.5,1.44294794]
[1766585282435,12.968774,2936.2,2935.5,1.44294794]
[1766585282744,0.04257348,2936.1,2935.5,1.44294794]
[1766585282911,0.002,2936.3,2935.5,1.44294794]
[1766585282912,13.968774,2936.2,2935.5,0.9207]
[1766585283111,0.04257348,2936.1,2935.5,0.9207]
[1766585283312,19.245838,2936.2,2935.4,0.001]
[1766585283612,0.04257348,2936.1,2935.4,0.001]
[1766585283810,19.239064,2936.2,2935.4,0.001]
[1766585284110,1.97093694,2936.1,2935.4,0.001]
[1766585284405,0.04257348,2936.1,2935.4,0.001]
[1766585284610,19.239064,2936.2,2935.4,0.001]
[1766585284910,0.04257348,2936.1,2935.4,0.001]
[1766585285135,30.0,2936.2,2935.4,0.001]
[1766585285334,0.04257348,2936.1,2935.4,0.001]
[1766585285534,20.109391,2936.2,2935.4,0.001]
[1766585285736,0.04257348,2936.1,2935.4,0.001]
[1766585285941,0.04257348,2936.1,2935.4,0.9051]
[1766585286237,15.575404,2936.2,2935.4,0.9051]
[1766585286450,0.002,2936.3,2935.4,0.9051]
[1766585286820,0.04457058,2936.3,2935.4,0.9051]
[1766585287025,0.04457058,2936.3,2935.6,0.9041]
[1766585287738,27.1801,2936.2,2935.4,0.001]
[1766585290813,0.04257348,2936.1,2935.4,0.001]
[1766585291146,24.870992,2936.2,2935.4,0.001]
[1766585291346,0.04257348,2936.1,2935.4,0.001]
[1766585291542,23.871345,2936.2,2935.4,0.52160138]
[1766585291745,0.002,2936.3,2935.4,0.9051]
[1766585292037,6.776853,2936.2,2935.4,0.9051]
[1766585292245,6.168853,2936.2,2935.4,0.9051]
[1766585293418,11.263994,2936.1,2935.4,0.9051]
[1766585293739,12.548347,2936.2,2935.4,0.9051]
[1766585294044,11.263994,2936.1,2935.4,0.9051]
[1766585294351,0.04257493,2936.0,2935.4,0.9051]
[1766585294558,0.04257348,2936.1,2935.4,0.9051]
[1766585294723,13.123363,2936.2,2935.4,0.9051]
[1766585294915,7.739285,2936.2,2935.5,0.9041]
[1766585296470,0.7743285,2936.2,2935.5,0.9041]
[1766585296788,6.735185,2936.2,2935.5,0.9041]
[1766585298083,0.04457058,2936.3,2935.5,0.9041]
[1766585298366,0.002,2936.3,2935.5,0.9051]
[1766585298563,0.002,2936.3,2935.6,0.9041]
[1766585299582,0.002,2936.3,2935.6,0.9041]
[1766585302153,0.002,2936.3,2935.7,0.9041]
[1766585309377,0.002,2936.3,2935.5,0.001]
[1766585310314,0.04457058,2936.3,2935.5,0.001]
[1766585310607,0.002,2936.3,2935.5,0.001]
[1766585310807,0.002,2936.3,2935.5,0.9051]
[1766585310998,0.002,2936.3,2935.6,0.9041]
[1766585311682,0.04457058,2936.3,2935.6,0.9041]
[1766585311887,0.002,2936.3,2935.6,0.9041]
[1766585313212,0.04457058,2936.3,2935.6,0.9041]
[1766585313514,0.002,2936.3,2935.6,0.9041]
[1766585314382,0.002,2936.3,2935.7,0.9189]
[1766585314608,0.04457058,2936.3,2935.7,0.9189]
[1766585314783,0.002,2936.3,2935.7,0.9189]
[1766585318015,0.002,2936.3,2935.5,0.001]
[1766585322518,0.002,2936.3,2935.5,0.9341]
[1766585324699,0.002,2936.3,2935.3,0.001]
[1766585324700,34.84411996,2936.2,2935.3,0.001]
[1766585324926,30.0,2936.0,2935.0,0.001]
[1766585325095,0.04257638,2935.9,2935.0,0.9341]
[1766585325296,30.0,2935.9,2935.0,0.9341]
[1766585325496,0.04257783,2935.8,2935.0,0.9341]
[1766585325701,0.2,2935.9,2934.9,0.894]
[1766585325895,0.2,2935.9,2934.9,0.001]
[1766585325896,18.792666,2935.7,2934.9,0.001]
[1766585326100,12.609663,2935.5,2934.9,0.001]
[1766585326297,6.28002884,2935.9,2934.9,0.001]
[1766585326298,30.0,2935.8,2934.9,0.001]
[1766585326608,13.046608,2935.6,2934.9,0.001]
[1766585326820,0.04258218,2935.5,2934.9,0.001]
[1766585327020,30.0,2935.7,2934.9,0.001]
[1766585327220,17.309116,2935.5,2934.9,0.001]
[1766585327700,0.04258363,2935.4,2934.9,0.001]
[1766585328026,0.04258218,2935.5,2934.9,0.001]
[1766585328235,29.094002,2935.7,2934.9,0.001]
[1766585328435,12.309116,2935.5,2934.9,0.001]
[1766585328601,0.04258363,2935.4,2934.9,0.001]
[1766585328800,29.094002,2935.7,2934.9,0.001]
[1766585329033,12.309116,2935.5,2934.9,0.001]
[1766585329333,0.04258363,2935.4,2934.8,0.001]
[1766585329498,9.68615074,2935.9,2934.8,0.001]
[1766585329499,29.094002,2935.7,2934.8,0.001]
[1766585329698,12.309116,2935.5,2934.8,0.001]
[1766585329932,0.04258363,2935.4,2934.8,0.001]
[1766585330234,30.0,2935.5,2934.8,0.001]
[1766585330432,3.46571717,2935.4,2934.7,0.001]
[1766585330639,0.04258363,2935.4,2934.7,0.001]
[1766585330803,0.04258218,2935.5,2934.7,0.001]
[1766585331509,0.04258218,2935.5,2934.6,1.8271]
[1766585331510,0.04258218,2935.5,2934.6,0.001]
[1766585331829,0.04258218,2935.5,2934.8,0.001]
[1766585331830,0.869,2935.4,2934.8,0.001]
[1766585332036,0.04258508,2935.3,2934.8,0.001]
[1766585335335,30.0,2935.2,2934.5,0.001]
[1766585335537,0.869,2935.4,2934.5,0.001]
[1766585335538,3.04684649,2935.1,2934.5,0.001]
[1766585335710,0.04258798,2935.1,2934.5,0.001]
[1766585336032,0.04258653,2935.2,2934.5,0.001]
[1766585339308,0.04258653,2935.2,2934.5,0.9341]
[1766585344042,0.2,2935.5,2934.8,0.9104]
[1766585344043,0.869,2935.5,2934.8,0.9104]
[1766585344416,0.04257783,2935.8,2935.1,0.9104]
[1766585344835,0.04257638,2935.9,2935.1,0.9104]
[1766585347049,0.04457638,2935.9,2935.1,0.9104]
[1766585347562,15.992164,2935.8,2935.1,0.9104]
[1766585347869,0.04257928,2935.7,2934.9,0.9104]
[1766585348168,12.470835,2935.7,2934.9,0.9104]
[1766585348336,20.535715,2935.8,2934.9,0.9104]
[1766585348535,0.04257928,2935.7,2934.9,0.9104]
[1766585348735,12.470835,2935.7,2935.0,1.39974445]
[1766585349068,24.141736,2935.8,2935.0,1.39974445]
[1766585349369,0.04257928,2935.7,2935.0,1.39974445]
[1766585349547,23.198842,2935.7,2935.0,0.9104]
[1766585349747,30.0,2935.8,2935.0,0.9104]
[1766585350055,0.04257928,2935.7,2935.0,0.9104]
[1766585350229,30.0,2935.8,2935.0,0.9104]
[1766585350435,0.04457638,2935.9,2935.0,0.9104]
[1766585350436,0.04257928,2935.7,2935.0,0.9104]
[1766585350636,0.002,2935.9,2935.0,0.9104]
[1766585350637,30.0,2935.8,2935.0,0.9104]
[1766585350859,3.04703692,2935.7,2935.0,0.9104]
[1766585351168,0.04257928,2935.7,2935.0,0.9104]
[1766585351349,30.0,2935.8,2935.0,0.9104]
[1766585351547,0.04257928,2935.7,2935.0,0.9104]
[1766585351743,30.0,2935.8,2935.0,0.9104]
[1766585351965,3.04703692,2935.7,2934.8,0.9104]
[1766585352264,0.04257928,2935.7,2934.8,0.9104]
[1766585352460,30.0,2935.8,2934.8,0.9104]
[1766585352636,0.04257928,2935.7,2934.8,0.9104]
[1766585352835,30.0,2935.8,2934.8,0.9104]
[1766585353139,0.04457638,2935.9,2934.8,0.9104]
[1766585353140,0.04257928,2935.7,2934.8,0.9104]
[1766585353345,30.0,2935.8,2934.8,0.9104]
[1766585353547,3.04703692,2935.7,2934.8,0.9104]
[1766585353763,0.04257928,2935.7,2934.8,0.9104]
[1766585353934,30.0,2935.8,2934.8,0.9104]
[1766585354134,0.04257928,2935.7,2934.8,0.9104]
[1766585354340,30.0,2935.8,2934.8,0.9104]
[1766585354561,0.04257928,2935.7,2934.8,0.9104]
[1766585354759,25.876845,2935.7,2934.8,0.9104]
[1766585354960,2.63452301,2935.6,2934.8,0.9104]
[1766585355269,0.04258073,2935.6,2934.8,0.9104]
[1766585355468,30.0,2935.7,2934.8,0.9104]
[1766585355764,0.04258073,2935.6,2934.8,0.9104]
[1766585355968,30.0,2935.7,2934.8,0.9104]
[1766585356154,0.04258073,2935.6,2934.8,0.9104]
[1766585356476,30.0,2935.7,2934.8,0.9104]
[1766585356769,3.04683851,2935.6,2934.8,0.9104]
[1766585356942,0.04258073,2935.6,2934.8,0.9104]
[1766585357142,30.0,2935.7,2934.8,0.9104]
[1766585357340,25.036801,2935.5,2934.6,0.001]
[1766585357671,0.04258363,2935.4,2934.6,0.001]
[1766585358567,0.04258363,2935.4,2934.6,0.9114]
[1766585358866,10.393937,2935.4,2934.6,0.9114]
[1766585359170,0.04258508,2935.3,2934.6,0.9114]
[1766585359371,0.04258363,2935.4,2934.7,0.9104]
[1766585359744,0.91158218,2935.5,2934.7,0.9104]
[1766585359945,0.869,2935.5,2934.7,0.9104]
[1766585360144,2.32258363,2935.4,2934.7,0.9104]
[1766585360367,0.04258363,2935.4,2934.7,0.9104]
[1766585361075,0.869,2935.5,2934.8,0.9104]
[1766585361462,4.926237,2935.7,2934.8,0.9104]
[1766585361663,0.04257783,2935.8,2934.8,0.9104]
[1766585361865,0.871,2935.9,2935.1,0.9104]
[1766585362179,0.002,2935.9,2935.1,0.9104]
[1766585362378,2.063408,2935.8,2935.2,0.9104]
[1766585362547,0.04257928,2935.7,2935.2,0.9104]
[1766585362973,11.302791,2935.8,2935.2,0.9104]
[1766585363275,0.04257928,2935.7,2935.2,0.9104]
[1766585363444,6.840345,2935.8,2935.2,0.9104]
[1766585364072,0.04257928,2935.7,2935.2,0.9104]
[1766585364474,10.665345,2935.8,2935.2,0.9104]
[1766585364668,0.04257928,2935.7,2935.2,0.9104]
[1766585364869,10.665345,2935.8,2935.2,0.9104]
[1766585365165,0.04257928,2935.7,2935.2,0.9104]
[1766585365357,6.840345,2935.8,2935.2,0.9104]
[1766585365557,4.784585,2935.8,2935.2,0.9104]
[1766585365774,0.04457638,2935.9,2935.2,0.9104]
[1766585368570,25.107097,2935.8,2935.2,0.9104]
[1766585368877,2.55774662,2935.7,2935.2,0.9104]
[1766585369072,0.04257928,2935.7,2935.2,0.9104]
[1766585369272,25.12104,2935.8,2935.2,0.9104]
[1766585369568,0.04257928,2935.7,2935.2,0.9104]
[1766585369773,22.50184,2935.8,2935.2,0.9104]
[1766585369973,0.04257928,2935.7,2935.2,0.9104]
[1766585370176,22.50184,2935.8,2935.2,0.9104]
[1766585370368,1.00867022,2935.7,2935.2,0.9104]
[1766585370684,1.00867022,2935.7,2934.9,0.9104]
[1766585370685,0.04257928,2935.7,2934.9,0.9104]
[1766585370884,22.456446,2935.8,2934.9,0.9104]
[1766585371088,0.04257928,2935.7,2934.9,0.9104]
[1766585371386,22.456446,2935.8,2934.9,0.9104]
[1766585371590,0.04257928,2935.7,2934.9,0.9104]
[1766585371774,22.456446,2935.8,2934.9,0.9104]
[1766585372098,1.11671688,2935.7,2934.9,0.9104]
[1766585372279,0.04257928,2935.7,2934.9,0.9104]
[1766585372478,22.418969,2935.8,2934.9,0.9104]
[1766585372779,0.04257928,2935.7,2934.9,0.9104]
[1766585372980,22.418969,2935.8,2934.9,0.9104]
[1766585373293,0.04257928,2935.7,2934.9,0.9104]
[1766585373596,22.418969,2935.8,2934.9,0.9104]
[1766585373777,2.28893382,2935.7,2934.9,0.9104]
[1766585373980,0.04257928,2935.7,2934.9,0.9104]
[1766585374167,22.418969,2935.8,2934.9,0.9104]
[1766585374365,0.04257928,2935.7,2934.9,3.40725696]
[1766585374568,20.918969,2935.8,2935.0,0.9338]
[1766585374867,0.04257928,2935.7,2935.0,0.9338]
[1766585375065,15.98758,2935.8,2935.0,0.9338]
[1766585375292,0.04257928,2935.7,2935.0,0.9338]
[1766585375668,5.347786,2935.8,2935.0,0.9338]
[1766585377201,0.04457638,2935.9,2935.0,0.9338]
[1766585377202,0.002,2935.7,2935.0,0.9338]
[1766585379892,0.002,2935.7,2934.9,0.9609]
[1766585380195,0.002,2935.7,2935.0,0.9609]
[1766585381702,0.002,2935.7,2935.1,0.9609]
[1766585400309,0.002,2935.7,2934.9,3.40720711]
[1766585400514,0.002,2935.7,2934.9,4.36810711]
[1766585400807,0.002,2935.7,2935.0,0.9609]
[1766585409925,0.002,2935.7,2935.0,3.40715279]
[1766585410119,0.002,2935.7,2935.1,0.9895]
[1766585417135,0.002,2935.7,2935.1,3.40702654]
[1766585417342,0.002,2935.7,2935.2,0.9895]
[1766585419654,0.002,2935.7,2935.3,0.9895]
[1766585421763,0.002,2935.7,2935.4,0.9895]
[1766585430862,0.002,2935.7,2935.5,0.9895]
[1766585436480,0.002,2935.7,2935.5,4.39607058]
[1766585436782,0.002,2935.7,2935.5,0.9895]
[1766585436982,0.002,2935.7,2935.5,4.39606855]
[1766585437169,0.002,2935.7,2935.5,0.9895]
[1766585438586,0.002,2935.7,2935.5,4.39605271]
[1766585440688,0.002,2935.7,2935.3,6.81358647]
[1766585440874,0.002,2935.9,2935.5,0.999]
[1766585441386,1.06730075,2936.3,2935.5,0.999]
[1766585442796,1.06730075,2936.3,2935.5,4.40552694]
[1766585443851,1.02473017,2936.3,2935.7,0.999]
[1766585444055,0.002,2936.4,2935.9,0.999]
[1766585444467,0.002,2936.4,2936.1,0.999]
[1766585444956,0.002,2936.4,2936.2,0.999]
[1766585445157,0.002,2936.9,2936.2,0.999]
[1766585446086,0.002,2937.0,2936.1,6.81174532]
[1766585446291,0.002,2937.1,2936.1,6.81174532]
[1766585446292,0.002,2937.1,2936.3,0.999]
[1766585446469,0.002,2937.5,2936.5,0.999]
[1766585446691,0.002,2937.5,2936.7,0.999]
[1766585446901,0.002,2937.5,2936.9,0.999]
[1766585447284,0.04455319,2937.5,2936.9,0.999]
[1766585448578,0.04455319,2937.5,2936.6,4.40429864]
[1766585448782,0.04455319,2937.5,2936.7,0.893]
[1766585449316,0.04455319,2937.5,2936.8,0.999]
[1766585449317,0.002,2937.5,2936.8,0.999]
[1766585450344,4.83924736,2937.0,2936.5,0.999]
[1766585450485,4.83924736,2937.3,2936.5,0.999]
[1766585450836,4.83924736,2937.3,2936.5,1.52874957]
[1766585450986,4.83924736,2937.3,2936.5,4.93406136]
[1766585451685,0.09877552,2936.9,2936.0,3.40589642]
[1766585451988,0.09877552,2936.7,2936.0,4.40489642]
[1766585452186,0.09877552,2936.5,2936.0,0.999]
[1766585452594,0.09877552,2936.5,2936.0,4.95371386]
[1766585452990,0.1413374,2936.6,2936.0,4.9536974]
[1766585453185,0.09877552,2936.5,2936.0,1.54772659]
[1766585453915,0.09877552,2936.5,2936.0,0.999]
[1766585455219,0.1413374,2936.6,2936.0,0.999]
[1766585456690,0.09877552,2936.5,2936.0,0.999]
[1766585457409,0.24011292,2936.5,2936.0,0.999]
[1766585457818,0.24011292,2936.5,2935.9,0.893]
[1766585458000,0.24011292,2936.5,2935.9,1.3418496]
[1766585458995,0.24011292,2936.5,2935.9,2.3408496]
[1766585460235,0.24011292,2936.5,2935.2,4.40591904]
[1766585460236,4.83924736,2936.0,2935.2,4.40591904]
[1766585460408,0.09877552,2936.2,2935.2,4.40591904]
[1766585460409,0.09877552,2936.2,2935.4,0.999]
[1766585460721,0.14134755,2936.2,2935.4,0.999]
[1766585461100,0.04257203,2936.2,2935.7,0.999]
[1766585461425,0.09877552,2936.2,2935.6,0.9789]
[1766585461594,0.88250041,2936.2,2935.3,4.38567756]
[1766585461793,0.09877552,2936.6,2935.5,0.9789]
[1766585462111,0.09877552,2936.6,2935.4,4.83924736]
[1766585462112,0.09877552,2936.4,2935.9,0.9789]
[1766585462519,1.02260467,2936.5,2935.9,0.9799]
[1766585462712,0.09877552,2936.4,2935.9,0.9799]
[1766585463120,0.14134465,2936.4,2935.9,0.9799]
[1766585463698,0.09877552,2936.4,2935.9,0.9799]
[1766585464628,0.14134175,2936.6,2936.0,0.9789]
[1766585464629,0.09877552,2936.6,2936.0,0.9789]
[1766585464938,0.09877552,2936.6,2936.2,0.9789]
[1766585471837,0.10077552,2936.6,2936.2,0.9789]
[1766585476535,0.09877552,2936.4,2936.0,0.9789]
[1766585478806,0.10077552,2936.6,2936.0,0.9789]
[1766585482942,0.09877552,2936.4,2935.9,0.001]
[1766585483133,0.14334175,2936.6,2935.9,0.001]
[1766585483315,0.09877552,2936.4,2935.9,0.001]
[1766585486651,0.14334175,2936.6,2935.9,0.9799]
[1766585487141,0.09877552,2936.4,2935.9,0.9799]
[1766585488012,4.93802288,2936.4,2935.6,0.9789]
[1766585488241,4.98059201,2936.4,2935.6,0.9789]
[1766585488439,5.57582876,2936.4,2935.6,0.9789]
[1766585488745,0.09877552,2936.2,2934.8,0.9789]
[1766585488945,0.09877552,2936.0,2935.0,1.0225977]
[1766585489155,0.09877552,2936.0,2935.1,0.9789]
[1766585489643,0.871,2936.1,2935.1,0.9789]
[1766585489946,0.09877552,2936.0,2935.1,0.9789]
[1766585490317,0.09877552,2936.0,2935.2,0.9789]
[1766585491549,4.93802288,2935.8,2934.8,0.976]